bitfinex-derivatives/quotes_SOLF0:USTF0_20241127
["timestamp","ask_amount","ask_price","bid_price","bid_amount"]
[1732681528895,2.5717,233.66,233.54,2.1417]
[1732681529301,2.1411,233.61,233.54,2.1417]
[1732681529804,10.57658502,233.65,233.54,2.1417]
[1732681530004,2.1412,233.6,233.5,2.142]
[1732681530300,10.57658502,233.62,233.5,2.142]
[1732681530998,3.8939,233.66,233.44,10.57658502]
[1732681530999,10.57658502,233.59,233.44,10.57658502]
[1732681531199,10.57658502,233.53,233.4,26.62455561]
[1732681531595,3.1,233.54,233.4,37.20114063]
[1732681532605,3.1,233.54,233.43,10.57658502]
[1732681534101,2.1418,233.53,233.45,2.1425]
[1732681535203,2.1418,233.53,233.46,2.1424]
[1732681535507,2.1418,233.53,233.43,10.57658502]
[1732681535704,2.1416,233.55,233.43,12.70134166]
[1732681535911,2.1416,233.55,233.46,10.57658502]
[1732681536710,3.1,233.68,233.52,10.57658502]
[1732681537003,1.2269,233.65,233.57,10.57658502]
[1732681537605,2.1408,233.64,233.57,10.57658502]
[1732681537805,1.2269,233.65,233.57,10.57658502]
[1732681538613,2.1409,233.63,233.57,10.57658502]
[1732681540028,1.2269,233.65,233.57,10.57658502]
[1732681540219,1.2269,233.65,233.54,10.57658502]
[1732681540416,1.2269,233.65,233.57,10.57658502]
[1732681541122,2.1405,233.67,233.6,12.71768502]
[1732681541317,1.2458,233.69,233.6,10.57658502]
[1732681542318,2.1406,233.66,233.6,10.57658502]
[1732681542517,1.2458,233.69,233.6,10.57658502]
[1732681542911,1.2458,233.69,233.57,10.57658502]
[1732681543112,2.1407,233.65,233.57,12.71788502]
[1732681543315,1.2458,233.69,233.54,10.57658502]
[1732681543516,3.1,233.68,233.54,10.57658502]
[1732681543717,2.1409,233.63,233.55,2.1416]
[1732681544121,3.1,233.68,233.54,10.57658502]
[1732681544518,2.141,233.61,233.51,14.95998502]
[1732681544922,2.1409,233.63,233.54,2.1417]
[1732681545121,2.1409,233.63,233.51,14.95998502]
[1732681545517,2.1409,233.62,233.55,2.1416]
[1732681547631,10.57658502,233.67,233.54,10.57658502]
[1732681548224,2.1409,233.63,233.54,12.71828502]
[1732681548722,10.57658502,233.67,233.54,10.57658502]
[1732681548919,10.57658502,233.67,233.54,12.71818502]
[1732681549318,10.57658502,233.67,233.55,2.1416]
[1732681549733,10.57658502,233.67,233.54,10.57658502]
[1732681550230,10.57658502,233.67,233.54,12.71828502]
[1732681550421,1.2458,233.69,233.54,10.57658502]
[1732681550626,1.2458,233.69,233.57,2.1414]
[1732681551328,2.1408,233.64,233.57,2.1414]
[1732681551523,1.2458,233.69,233.54,10.57658502]
[1732681551723,1.2458,233.69,233.55,2.1415]
[1732681551924,2.1408,233.64,233.54,10.57658502]
[1732681552629,2.1407,233.65,233.57,2.1414]
[1732681552933,11.82238502,233.69,233.54,10.57658502]
[1732681553829,10.57658502,233.66,233.51,4.2234]
[1732681554129,13.51658502,233.66,233.51,4.2234]
[1732681554429,10.57658502,233.63,233.51,4.2234]
[1732681555023,2.1411,233.6,233.53,2.1418]
[1732681555425,2.141,233.62,233.55,2.1416]
[1732681555927,13.51658502,233.66,233.52,10.57658502]
[1732681556829,2.141,233.61,233.52,12.71838502]
[1732681557025,2.141,233.61,233.52,10.57658502]
[1732681557624,2.1409,233.63,233.52,10.57658502]
[1732681558128,2.1411,233.6,233.53,2.1417]
[1732681558521,13.51658502,233.66,233.53,2.1417]
[1732681559323,10.57658502,233.63,233.51,3.4253]
[1732681559526,1.198,233.62,233.51,3.4253]
[1732681560327,1.198,233.62,233.53,2.1418]
[1732681560722,2.1412,233.59,233.51,1.2834]
[1732681561625,2.1411,233.6,233.53,2.1418]
[1732681562026,1.2458,233.69,233.51,1.2834]
[1732681562027,1.2458,233.69,233.55,10.57658502]
[1732681562228,1.2458,233.69,233.56,2.94]
[1732681562428,2.1405,233.67,233.6,2.1411]
[1732681562633,2.1405,233.67,233.58,10.57658502]
[1732681562929,1.2458,233.69,233.61,10.57658502]
[1732681563231,1.2074,233.75,233.61,10.57658502]
[1732681563526,2.1402,233.7,233.64,2.1407]
[1732681563735,2.1402,233.7,233.61,10.57658502]
[1732681564328,1.3305,233.74,233.61,10.57658502]
[1732681564329,2.1401,233.71,233.64,2.1408]
[1732681565133,1.3305,233.74,233.62,2.1409]
[1732681565328,1.3305,233.74,233.58,10.57658502]
[1732681565329,10.57658502,233.73,233.58,10.57658502]
[1732681566131,1.3305,233.74,233.61,10.57658502]
[1732681566332,1.3305,233.74,233.65,2.1407]
[1732681566530,1.3305,233.74,233.64,10.57658502]
[1732681567136,2.1399,233.73,233.66,2.1405]
[1732681567434,1.3305,233.74,233.55,0.1787]
[1732681567638,1.3305,233.74,233.6,10.57658502]
[1732681567847,2.1401,233.71,233.63,2.1408]
[1732681568436,2.1401,233.71,233.6,10.57658502]
[1732681568437,2.1401,233.71,233.64,2.1408]
[1732681568634,1.3305,233.74,233.64,2.1408]
[1732681568829,2.14,233.72,233.63,10.57658502]
[1732681569035,1.3305,233.74,233.67,2.1405]
[1732681569436,3.4704,233.74,233.63,13.51658502]
[1732681569640,1.3305,233.74,233.63,13.51658502]
[1732681569841,1.3305,233.74,233.66,2.1406]
[1732681570735,3.4704,233.74,233.66,2.1406]
[1732681570932,1.3305,233.74,233.66,2.1406]
[1732681571338,3.4704,233.74,233.67,2.1405]
[1732681571836,1.3305,233.74,233.63,13.51658502]
[1732681572640,1.3305,233.74,233.67,2.1405]
[1732681573737,3.4704,233.74,233.67,2.1405]
[1732681574637,1.2074,233.75,233.7,2.1402]
[1732681575544,1.2074,233.75,233.71,2.14]
[1732681575846,2.94,233.82,233.69,10.57658502]
[1732681576646,2.1395,233.78,233.72,2.14]
[1732681577444,2.1394,233.8,233.72,2.14]
[1732681577638,10.57658502,233.85,233.72,2.14]
[1732681577639,2.8,233.83,233.72,2.14]
[1732681577943,2.1393,233.8,233.7,2.8]
[1732681579042,2.1394,233.79,233.7,2.8]
[1732681579644,11.85088502,233.85,233.7,2.8]
[1732681579645,1.2405,233.86,233.75,10.57658502]
[1732681580647,2.1392,233.82,233.75,12.71628502]
[1732681581251,2.139,233.84,233.77,2.1396]
[1732681581449,2.139,233.84,233.75,10.57658502]
[1732681581450,1.2405,233.86,233.75,10.57658502]
[1732681582342,2.139,233.83,233.75,12.71628502]
[1732681583050,1.2405,233.86,233.72,10.57658502]
[1732681583749,1.2405,233.86,233.72,12.71658502]
[1732681584348,2.1392,233.81,233.76,6.75276675]
[1732681584549,2.8,233.83,233.76,6.75276675]
[1732681585359,2.1392,233.82,233.78,6.75276675]
[1732681585752,2.8,233.83,233.78,6.75276675]
[1732681585953,2.8,233.83,233.8,6.75276675]
[1732681586155,1.2405,233.86,233.8,6.75276675]
[1732681586570,2.1388,233.85,233.8,6.75276675]
[1732681586750,1.2405,233.86,233.8,6.75276675]
[1732681587449,2.139,233.84,233.78,6.75276675]
[1732681588051,7.99326675,233.86,233.78,6.75276675]
[1732681588356,2.139,233.83,233.78,6.75276675]
[1732681589248,2.1392,233.82,233.78,6.75276675]
[1732681589445,6.75276675,233.82,233.69,2.8]
[1732681589650,6.75276675,233.82,233.73,6.75276675]
[1732681589854,2.1394,233.79,233.73,6.75276675]
[1732681590058,2.1394,233.79,233.75,6.75276675]
[1732681590257,9.55276675,233.82,233.75,6.75276675]
[1732681590679,9.55276675,233.82,233.73,6.75276675]
[1732681591048,2.1396,233.78,233.73,6.75276675]
[1732681591656,6.75276675,233.8,233.73,6.75276675]
[1732681592157,2.8,233.82,233.7,6.75276675]
[1732681592158,2.1398,233.75,233.7,6.75276675]
[1732681593352,2.1397,233.76,233.7,6.75276675]
[1732681593768,6.75276675,233.76,233.64,1.3086]
[1732681594062,2.14,233.72,233.65,2.1406]
[1732681594252,2.5107,233.77,233.64,11.86750975]
[1732681594763,2.14,233.72,233.65,2.1407]
[1732681595060,2.8,233.75,233.64,11.86750975]
[1732681595460,2.1402,233.71,233.64,11.86750975]
[1732681596360,2.1401,233.72,233.64,11.86750975]
[1732681597155,2.8,233.75,233.67,10.55890975]
[1732681597962,2.14,233.73,233.67,10.55890975]
[1732681598162,2.8,233.75,233.67,10.55890975]
[1732681598559,2.1398,233.74,233.67,10.55890975]
[1732681598763,2.8,233.76,233.67,10.55890975]
[1732681599158,2.1399,233.74,233.67,10.55890975]
[1732681599353,2.8,233.76,233.67,10.55890975]
[1732681599864,2.14,233.72,233.67,10.55890975]
[1732681600756,2.8,233.76,233.67,10.55890975]
[1732681601360,2.8,233.76,233.61,2.8]
[1732681601566,2.8,233.76,233.65,10.55890975]
[1732681601567,2.1402,233.71,233.65,10.55890975]
[1732681602768,2.8,233.76,233.65,10.55890975]
[1732681602769,2.1402,233.7,233.65,10.55890975]
[1732681603179,2.8,233.76,233.65,10.55890975]
[1732681603668,2.8,233.76,233.68,10.55890975]
[1732681604863,2.14,233.72,233.68,10.55890975]
[1732681605263,2.8,233.76,233.68,10.55890975]
[1732681606276,2.1398,233.75,233.68,12.69930975]
[1732681606864,2.1399,233.73,233.68,10.55890975]
[1732681608376,2.8,233.76,233.65,10.55890975]
[1732681609067,2.1401,233.72,233.65,12.69950975]
[1732681609864,2.8,233.76,233.65,10.55890975]
[1732681610576,2.1401,233.72,233.65,12.69950975]
[1732681611265,2.1399,233.74,233.66,2.1406]
[1732681611665,2.8,233.76,233.66,2.1406]
[1732681611877,2.8,233.76,233.68,10.55890975]
[1732681612880,2.8,233.76,233.61,2.8]
[1732681612881,2.1401,233.72,233.65,10.55890975]
[1732681614375,2.1401,233.72,233.7,6.75673714]
[1732681614675,2.1401,233.72,233.65,2.1407]
[1732681614877,2.1401,233.71,233.61,2.8]
[1732681615077,9.55673714,233.76,233.6,1.3211]
[1732681615078,6.75673714,233.74,233.6,1.3211]
[1732681615279,6.75673714,233.72,233.64,6.75673714]
[1732681615981,2.1404,233.68,233.64,6.75673714]
[1732681616175,6.75673714,233.72,233.66,6.75673714]
[1732681616376,2.1402,233.7,233.66,6.75673714]
[1732681617080,2.1403,233.69,233.66,6.75673714]
[1732681618379,2.1407,233.66,233.62,6.75673714]
[1732681619479,2.1405,233.68,233.62,6.75673714]
[1732681620179,9.45673714,233.7,233.54,1.2158]
[1732681620374,9.45673714,233.7,233.61,6.75673714]
[1732681621171,6.75673714,233.68,233.54,1.2158]
[1732681621379,6.75673714,233.65,233.57,6.75673714]
[1732681621675,2.7,233.64,233.45,23.83064502]
[1732681621880,6.75673714,233.53,233.45,23.49144502]
[1732681622082,9.45673714,233.53,233.45,23.49144502]
[1732681622479,2.1421,233.49,233.45,23.49144502]
[1732681622676,2.5542,233.52,233.45,23.49144502]
[1732681623078,2.1423,233.48,233.45,23.49144502]
[1732681623277,6.75673714,233.49,233.45,23.49144502]
[1732681623779,3.8447,233.52,233.46,6.75673714]
[1732681624277,2.1422,233.49,233.45,23.49144502]
[1732681624681,2.1421,233.5,233.45,23.49144502]
[1732681624978,3.8447,233.52,233.45,23.49144502]
[1732681625478,2.1425,233.46,233.42,10.57925682]
[1732681625674,3.8447,233.52,233.42,10.57925682]
[1732681625869,3.8447,233.52,233.22,112.15474489]
[1732681626069,3.8447,233.52,233.37,10.57925682]
[1732681626279,3.8447,233.52,233.34,10.57925682]
[1732681626280,10.57925682,233.51,233.34,10.57925682]
[1732681626481,10.57925682,233.48,233.34,10.57925682]
[1732681626675,2.7,233.47,233.34,10.57925682]
[1732681627575,2.1429,233.41,233.34,10.57925682]
[1732681627981,4.8429,233.41,233.34,10.57925682]
[1732681628276,2.7,233.41,233.37,10.57925682]
[1732681629279,10.57925682,233.51,233.37,10.57925682]
[1732681629481,2.7,233.46,233.4,10.57925682]
[1732681629787,2.7,233.48,233.4,10.57925682]
[1732681631087,3.8447,233.52,233.4,10.57925682]
[1732681631384,2.1422,233.48,233.4,10.57925682]
[1732681631684,2.7,233.51,233.37,10.57925682]
[1732681631685,13.27925682,233.51,233.37,10.57925682]
[1732681631887,10.57925682,233.48,233.34,10.57925682]
[1732681632278,2.1429,233.41,233.32,2.1437]
[1732681632482,4.8429,233.41,233.32,2.1437]
[1732681633489,2.1431,233.39,233.3,2.1438]
[1732681633883,2.7,233.41,233.3,2.1438]
[1732681634182,2.1432,233.38,233.3,2.1438]
[1732681635485,2.1432,233.38,233.28,10.57925682]
[1732681635486,2.1432,233.38,233.31,2.1438]
[1732681636184,2.7,233.41,233.28,10.57925682]
[1732681636376,2.7,233.41,233.27,0.15871]
[1732681636377,10.57925682,233.36,233.27,0.15871]
[1732681636581,2.7,233.35,233.27,0.15871]
[1732681636977,2.1436,233.33,233.27,0.15871]
[1732681637183,2.7,233.35,233.27,0.15871]
[1732681637585,2.1438,233.32,233.27,0.15871]
[1732681642591,2.1438,233.32,233.24,0.1491]
[1732681642794,2.1438,233.32,233.09,46.98289005]
[1732681642795,10.57925682,233.29,233.14,10.57925682]
[1732681643093,2.62,233.28,233.14,10.57925682]
[1732681643290,2.1444,233.24,233.14,12.72455682]
[1732681645299,2.1446,233.23,233.14,10.57925682]
[1732681647293,2.62,233.22,233.14,10.57925682]
[1732681648089,2.62,233.24,233.17,10.57925682]
[1732681648593,2.62,233.24,233.17,12.72425682]
[1732681648994,10.57925682,233.32,233.17,10.57925682]
[1732681648995,2.62,233.28,233.17,10.57925682]
[1732681649201,2.62,233.28,233.2,10.57925682]
[1732681649592,2.62,233.31,233.2,10.57925682]
[1732681649790,2.1439,233.3,233.21,3.4456]
[1732681650187,2.1437,233.32,233.23,10.57925682]
[1732681650588,4.7637,233.32,233.23,10.57925682]
[1732681650795,2.1433,233.36,233.26,2.1442]
[1732681650994,2.62,233.35,233.26,12.72345682]
[1732681651293,2.62,233.35,233.26,10.57925682]
[1732681652398,2.62,233.35,233.21,3.9209]
[1732681652399,4.7635,233.35,233.24,2.1444]
[1732681652990,2.1435,233.34,233.24,2.1444]
[1732681653606,2.1435,233.34,233.25,2.1443]
[1732681654300,14.43425682,233.4,233.27,2.1441]
[1732681654301,4.7634,233.36,233.27,2.1441]
[1732681654501,4.7634,233.36,233.26,10.57925682]
[1732681654691,2.62,233.36,233.26,10.57925682]
[1732681655097,4.7634,233.36,233.26,12.72345682]
[1732681655497,4.7634,233.36,233.2,46.54974467]
[1732681655498,10.57925682,233.31,233.2,5.81871808]
[1732681655700,10.57925682,233.27,233.14,1.3054]
[1732681655900,2.62,233.26,233.14,1.3054]
[1732681656300,2.1446,233.23,233.14,3.4507]
[1732681657096,10.57925682,233.24,233.13,0.20099]
[1732681657399,2.62,233.26,233.13,0.20099]
[1732681657400,10.57925682,233.21,233.13,0.20099]
[1732681657606,2.62,233.2,233.13,0.20099]
[1732681658703,10.57925682,233.27,233.13,0.20099]
[1732681658902,2.1445,233.24,233.13,10.78024682]
[1732681659605,2.1445,233.23,233.14,2.1453]
[1732681660102,2.1444,233.24,233.15,2.1452]
[1732681660405,2.62,233.25,233.13,10.78024682]
[1732681661303,2.1446,233.23,233.13,10.78024682]
[1732681661605,2.1446,233.23,233.14,5.22169875]
[1732681661808,2.1446,233.23,233.13,16.5989649]
[1732681662006,2.1446,233.23,233.14,5.22166546]
[1732681662309,2.1446,233.23,233.14,2.1453]
[1732681662500,2.1446,233.22,233.13,10.78024682]
[1732681663206,2.1446,233.22,233.14,2.1453]
[1732681663703,2.62,233.29,233.16,10.57925682]
[1732681663907,2.62,233.29,233.19,10.57925682]
[1732681664113,2.62,233.29,233.17,1.2795]
[1732681664414,2.1444,233.25,233.17,1.2795]
[1732681664701,2.1443,233.26,233.17,3.4245]
[1732681664908,2.62,233.29,233.17,3.4245]
[1732681665104,2.62,233.29,233.17,1.2795]
[1732681665507,2.1443,233.25,233.17,1.2795]
[1732681665809,10.57925682,233.24,233.14,23.27487233]
[1732681666011,10.57925682,233.21,233.13,0.20099]
[1732681668205,2.145,233.18,233.13,0.20099]
[1732681668403,10.57925682,233.21,233.13,0.20099]
[1732681668804,2.1452,233.16,233.1,27.07679095]
[1732681669207,10.57925682,233.15,233.1,25.79729095]
[1732681669513,10.57925682,233.15,233.05,5.81871808]
[1732681670216,10.57925682,233.12,233.03,1.253]
[1732681671107,10.57925682,233.12,233.0,1.225]
[1732681671535,2.1459,233.09,233.0,1.225]
[1732681671813,2.52,233.09,233.0,1.225]
[1732681672007,2.52,233.09,233.07,0.27112]
[1732681672413,2.52,233.13,233.07,0.27112]
[1732681672719,2.52,233.14,233.07,0.27112]
[1732681673210,10.57925682,233.19,233.07,0.27112]
[1732681673617,13.09925682,233.19,233.07,0.27112]
[1732681673819,13.09925682,233.19,233.07,1.56372]
[1732681674018,2.145,233.18,233.1,2.1457]
[1732681674222,2.52,233.19,233.07,7.38243808]
[1732681674627,13.09925682,233.19,233.08,2.1458]
[1732681675115,2.1452,233.16,233.08,2.1458]
[1732681675319,2.1452,233.16,233.09,2.1458]
[1732681676118,13.09925682,233.19,233.11,2.1456]
[1732681676816,13.09925682,233.19,233.12,2.1455]
[1732681677428,15.24415682,233.19,233.11,2.1456]
[1732681678221,2.145,233.18,233.09,2.1457]
[1732681678423,13.09925682,233.19,233.09,2.1457]
[1732681678615,1.3157,233.2,233.07,1.56372]
[1732681678815,2.145,233.18,233.11,2.1456]
[1732681679014,3.8357,233.2,233.07,1.56372]
[1732681680424,2.1451,233.17,233.1,2.1457]
[1732681680922,2.145,233.18,233.1,2.1457]
[1732681681324,2.145,233.18,233.09,2.1457]
[1732681681618,2.145,233.18,233.07,1.56372]
[1732681682618,10.57925682,233.19,233.07,1.56372]
[1732681682825,2.1451,233.17,233.1,2.1457]
[1732681683729,10.57925682,233.19,233.07,1.56372]
[1732681683926,10.57925682,233.16,233.07,0.27112]
[1732681684119,10.57925682,233.1,233.07,0.27112]
[1732681684317,2.1459,233.08,233.07,0.27112]
[1732681684523,10.57925682,233.1,233.05,5.81871808]
[1732681684720,10.57925682,233.1,232.95,1.2808]
[1732681684918,10.57925682,233.1,232.96,1.07382693]
[1732681685121,10.57925682,233.1,232.97,1.07382969]
[1732681685329,10.57925682,233.1,232.95,1.2808]
[1732681685518,2.1461,233.06,232.98,2.1468]
[1732681686119,2.1461,233.06,232.95,1.2808]
[1732681686421,2.1461,233.06,232.93,18.9681749]
[1732681686422,2.52,233.06,232.96,1.07386193]
[1732681686726,10.57925682,233.01,232.93,5.81871808]
[1732681687326,2.52,233.0,232.93,5.81871808]
[1732681687720,4.6667,233.0,232.93,5.81871808]
[1732681687927,13.09925682,233.04,232.93,5.81871808]
[1732681688322,2.1467,233.0,232.93,5.81871808]
[1732681688522,13.09925682,233.04,232.93,5.81871808]
[1732681689318,2.1464,233.03,232.93,7.96591808]
[1732681689523,13.09925682,233.04,232.93,7.96591808]
[1732681689917,13.09925682,233.04,232.93,2.1472]
[1732681690221,4.75,233.05,232.92,2.52]
[1732681690418,1.3004,233.05,232.94,10.57925682]
[1732681690618,2.52,233.08,232.99,2.1467]
[1732681691319,2.52,233.08,232.94,10.57925682]
[1732681691521,4.6659,233.08,232.98,2.1468]
[1732681691721,2.52,233.08,232.97,10.57925682]
[1732681692022,10.57925682,233.1,232.97,10.57925682]
[1732681693519,2.52,233.11,232.97,10.57925682]
[1732681693720,4.9689,233.14,233.0,10.57925682]
[1732681694121,10.57925682,233.12,232.98,2.52]
[1732681694325,2.1457,233.1,232.98,2.52]
[1732681694522,10.57925682,233.12,232.98,2.52]
[1732681695947,2.1459,233.08,233.0,2.1466]
[1732681696230,2.1459,233.08,232.98,2.52]
[1732681696827,2.1457,233.1,232.98,2.52]
[1732681697335,10.57925682,233.12,232.98,2.52]
[1732681698036,2.5,233.13,233.0,10.57925682]
[1732681698529,2.1455,233.12,233.05,2.1461]
[1732681698729,4.9489,233.14,233.0,10.57925682]
[1732681699323,2.1456,233.11,233.02,2.1464]
[1732681699527,2.1456,233.11,233.0,10.57925682]
[1732681700033,2.1455,233.13,233.04,2.1462]
[1732681700225,10.57925682,233.12,232.95,1.2037]
[1732681700526,2.1458,233.09,232.96,11.65295445]
[1732681700728,2.5,233.13,232.99,10.57925682]
[1732681700934,2.5,233.13,232.99,13.07925682]
[1732681701229,2.1455,233.13,232.99,13.07925682]
[1732681701428,2.1455,233.13,233.02,10.57925682]
[1732681701625,2.1455,233.13,233.05,2.1461]
[1732681702142,17.08046582,233.25,233.05,10.57925682]
[1732681702328,2.1451,233.17,233.09,2.1458]
[1732681702529,4.6451,233.17,233.09,2.1458]
[1732681703131,2.5,233.17,233.1,2.1457]
[1732681704235,2.5,233.17,233.09,2.1458]
[1732681704830,2.5,233.17,233.05,13.07925682]
[1732681705234,2.5,233.23,233.13,2.1454]
[1732681705436,2.1448,233.2,233.08,10.57925682]
[1732681705734,2.1448,233.2,233.12,2.1455]
[1732681706431,2.1449,233.19,233.11,2.1456]
[1732681706936,13.07925682,233.23,233.08,10.57925682]
[1732681707134,2.1448,233.2,233.12,2.1455]
[1732681707353,13.07925682,233.23,233.11,10.57925682]
[1732681707633,2.5,233.23,233.11,10.57925682]
[1732681707931,3.8287,233.24,233.11,13.07925682]
[1732681708138,3.8287,233.24,233.14,10.57925682]
[1732681708333,2.5001,233.24,233.18,2.145]
[1732681708729,1.2465,233.34,233.17,10.57925682]
[1732681708929,7.1697,233.33,233.24,2.1444]
[1732681709136,5.0261,233.33,233.2,10.57925682]
[1732681709335,15.60535682,233.33,233.2,10.57925682]
[1732681709539,2.1438,233.31,233.22,2.1445]
[1732681709732,15.60535682,233.33,233.17,13.07925682]
[1732681710235,10.57925682,233.32,233.17,13.07925682]
[1732681711037,2.144,233.29,233.2,2.1448]
[1732681711434,10.57925682,233.29,233.14,13.07925682]
[1732681711632,2.1446,233.23,233.14,2.1453]
[1732681712241,2.1446,233.23,233.15,2.1452]
[1732681712443,13.07925682,233.26,233.15,2.1452]
[1732681712643,2.1446,233.22,233.15,2.1452]
[1732681713443,13.07925682,233.26,233.11,13.07925682]
[1732681713635,2.1446,233.22,233.11,13.07925682]
[1732681713840,13.07925682,233.26,233.11,2.5]
[1732681714040,13.07925682,233.26,233.11,13.07925682]
[1732681714947,2.1447,233.21,233.11,13.07925682]
[1732681715148,10.57925682,233.23,233.11,2.5]
[1732681715748,1.2297,233.25,233.11,13.07925682]
[1732681717050,2.1448,233.2,233.14,2.1453]
[1732681718249,2.1447,233.21,233.14,2.1453]
[1732681720456,2.1448,233.2,233.14,2.1453]
[1732681720853,1.2297,233.25,233.14,2.1453]
[1732681721050,2.1447,233.22,233.15,2.1452]
[1732681721354,2.5,233.27,233.14,10.57925682]
[1732681722457,2.1443,233.26,233.18,2.1449]
[1732681722651,2.1443,233.26,233.17,13.07925682]
[1732681723360,2.5,233.31,233.17,13.07925682]
[1732681723754,2.144,233.29,233.17,13.07925682]
[1732681724551,2.1441,233.28,233.17,13.07925682]
[1732681725255,2.1441,233.28,233.21,2.1446]
[1732681725951,2.5,233.31,233.17,13.07925682]
[1732681725952,2.1442,233.27,233.17,13.07925682]
[1732681726461,2.1441,233.28,233.23,2.1445]
[1732681726758,1.2489,233.32,233.23,2.1445]
[1732681726958,1.2489,233.32,233.2,10.57925682]
[1732681727256,2.1441,233.28,233.22,2.1446]
[1732681728058,2.1443,233.25,233.18,2.1449]
[1732681728255,11.82815682,233.32,233.18,2.1449]
[1732681728662,2.1446,233.22,233.17,2.5]
[1732681728852,2.1446,233.22,233.16,2.1451]
[1732681729255,2.1447,233.21,233.15,2.1452]
[1732681729862,2.62,233.27,233.14,2.1453]
[1732681730056,10.57925682,233.26,233.14,2.1453]
[1732681730466,2.1448,233.21,233.14,2.1453]
[1732681731562,10.57925682,233.26,233.14,2.1453]
[1732681731863,2.1448,233.2,233.14,2.1453]
[1732681732364,10.57925682,233.23,233.11,2.1456]
[1732681732585,10.57925682,233.23,233.1,2.62]
[1732681732955,2.5725,233.22,233.1,2.62]
[1732681733757,2.1448,233.2,233.13,2.1454]
[1732681733966,2.5725,233.22,233.11,10.57925682]
[1732681734163,2.62,233.27,233.17,10.57925682]
[1732681734668,2.1443,233.25,233.18,2.145]
[1732681736870,4.7642,233.27,233.19,2.1449]
[1732681737061,2.62,233.27,233.17,10.57925682]
[1732681737263,2.5971,233.31,233.2,10.57925682]
[1732681738266,2.144,233.29,233.22,2.1446]
[1732681739666,2.144,233.29,233.23,2.1445]
[1732681740159,2.144,233.29,233.2,10.57925682]
[1732681741867,2.144,233.29,233.21,2.1446]
[1732681742169,2.144,233.29,233.2,10.57925682]
[1732681742367,2.1441,233.28,233.2,10.57925682]
[1732681742566,2.1441,233.28,233.22,2.1446]
[1732681743271,10.57925682,233.29,233.14,10.57925682]
[1732681743469,10.57925682,233.29,233.14,13.19925682]
[1732681743780,2.1444,233.25,233.15,2.1452]
[1732681743972,2.62,233.26,233.14,10.57925682]
[1732681744362,2.62,233.26,233.19,2.1449]
[1732681744561,2.62,233.26,233.14,10.57925682]
[1732681744766,2.1445,233.23,233.17,2.1451]
[1732681744986,2.62,233.26,233.14,10.57925682]
[1732681745974,2.1448,233.21,233.14,12.72455682]
[1732681746581,2.1448,233.2,233.13,2.1454]
[1732681747068,2.1448,233.2,233.14,2.1453]
[1732681748066,13.19925682,233.26,233.09,2.62]
[1732681748871,2.145,233.18,233.12,2.1455]
[1732681751371,2.62,233.26,233.11,10.57925682]
[1732681751575,2.62,233.26,233.14,10.57925682]
[1732681751974,2.1446,233.23,233.15,2.1452]
[1732681752200,2.62,233.26,233.15,2.1452]
[1732681752770,2.62,233.26,233.14,10.57925682]
[1732681752771,2.62,233.26,233.14,12.72455682]
[1732681753181,2.1447,233.21,233.14,2.1453]
[1732681753482,13.19925682,233.26,233.13,2.1454]
[1732681753875,2.1448,233.21,233.13,2.1454]
[1732681754286,13.19925682,233.26,233.11,10.57925682]
[1732681754479,2.1446,233.23,233.14,10.57925682]
[1732681754674,2.62,233.26,233.17,10.57925682]
[1732681754881,2.62,233.26,233.2,2.1448]
[1732681755082,2.5971,233.31,233.2,2.1448]
[1732681755280,2.62,233.3,233.2,2.1448]
[1732681756083,2.5971,233.31,233.23,10.57925682]
[1732681757085,2.5971,233.31,233.25,2.1443]
[1732681757278,2.5971,233.31,233.21,2.62]
[1732681757877,2.5971,233.31,233.17,14.35905682]
[1732681758583,2.5971,233.31,233.19,2.1448]
[1732681758778,2.5971,233.31,233.17,14.35905682]